bitfinex/quotes_BTCUSD_20250412
["timestamp","ask_amount","ask_price","bid_price","bid_amount"]
[1744494236793,0.00489011,85453.0,85452.0,0.46084154]
[1744494237572,0.00089011,85453.0,85452.0,0.46084154]
[1744494237777,0.00389011,85453.0,85452.0,0.46084154]
[1744494238387,0.00289011,85453.0,85452.0,0.46184154]
[1744494244032,0.00289011,85453.0,85452.0,0.001]
[1744494244275,0.00289011,85453.0,85452.0,0.46184154]
[1744494245238,0.00289011,85453.0,85452.0,0.45397878]
[1744494246313,1e-08,85459.0,85458.0,0.58857385]
[1744494246508,0.00012031,85459.0,85458.0,0.84589539]
[1744494246682,0.00012031,85459.0,85458.0,0.87848191]
[1744494247419,3.1e-07,85459.0,85458.0,0.86466881]
[1744494248020,3.1e-07,85459.0,85458.0,0.86666881]
[1744494248240,4.1e-07,85464.0,85463.0,0.58855985]
[1744494248444,4.1e-07,85464.0,85463.0,0.74198791]
[1744494248711,4.1e-07,85464.0,85463.0,0.74635113]
[1744494248885,4.1e-07,85464.0,85463.0,0.74198791]
[1744494249442,5.1e-07,85467.0,85466.0,0.58855185]
[1744494249641,5.1e-07,85467.0,85466.0,0.70939339]
[1744494250640,5.1e-07,85467.0,85466.0,0.71139339]
[1744494251043,5.1e-07,85467.0,85466.0,0.74492801]
[1744494251270,3.1e-07,85489.0,85487.0,0.24849385]
[1744494251470,3.1e-07,85489.0,85488.0,2.22518239]
[1744494251671,0.00014034,85489.0,85488.0,2.22518239]
[1744494252095,0.00014034,85489.0,85488.0,2.07416154]
[1744494252298,0.00014034,85489.0,85488.0,0.13648]
[1744494252517,0.00014034,85489.0,85488.0,0.47648]
[1744494252715,0.00014034,85489.0,85482.0,0.245662]
[1744494252911,0.00014034,85489.0,85486.0,0.233955]
[1744494253100,0.00014034,85489.0,85487.0,0.23395]
[1744494253411,0.00014034,85489.0,85488.0,0.002]
[1744494253774,0.00014034,85489.0,85488.0,0.004]
[1744494254012,0.00014034,85489.0,85434.0,0.889573]
[1744494254013,0.0117,85465.0,85459.0,0.245728]
[1744494254187,0.0117,85465.0,85460.0,0.50300754]
[1744494254395,0.234022,85462.0,85460.0,0.25728154]
[1744494254593,0.234022,85462.0,85447.0,0.011703]
[1744494254594,0.011701,85457.0,85450.0,0.245756]
[1744494254930,0.011701,85457.0,85445.0,0.08774152]
[1744494254931,0.234065,85446.0,85445.0,0.08774152]
[1744494255322,0.234082,85440.0,85426.0,0.25773413]
[1744494255701,0.234082,85440.0,85426.0,0.50355813]
[1744494255899,0.234082,85440.0,85439.0,0.00046711]
[1744494256603,0.232082,85440.0,85439.0,0.00046711]
[1744494257372,0.234082,85440.0,85439.0,0.00046711]
[1744494268256,0.002,85440.0,85439.0,0.00046711]
[1744494269061,0.236082,85440.0,85439.0,0.00046711]
[1744494271992,0.284682,85440.0,85439.0,0.00046711]
[1744494272194,0.284682,85440.0,85389.0,1.20464]
[1744494272195,0.011708,85410.0,85401.0,0.013709]
[1744494272423,0.011708,85409.0,85408.0,0.0001203]
[1744494273018,0.011707,85412.0,85408.0,0.0001203]
[1744494273224,0.234167,85409.0,85408.0,0.0001203]
[1744494273421,0.011707,85415.0,85408.0,0.0001203]
[1744494273422,0.001,85410.0,85408.0,0.0001203]
[1744494274027,0.003,85409.0,85408.0,0.0001203]
[1744494275346,0.332066,85410.0,85408.0,0.0001203]
[1744494275548,0.333066,85410.0,85408.0,0.0001203]
[1744494275693,0.283766,85410.0,85408.0,0.0001203]
[1744494275895,0.235166,85410.0,85408.0,0.0001203]
[1744494276097,0.004,85409.0,85408.0,0.0001203]
[1744494276455,0.007,85409.0,85408.0,0.0001203]
[1744494277037,0.003,85409.0,85408.0,0.0001203]
[1744494277242,0.007,85409.0,85408.0,0.0001203]
[1744494279067,0.007,85409.0,85408.0,0.35513184]
[1744494279941,0.003,85409.0,85408.0,0.35513184]
[1744494280264,0.011706,85426.0,85422.0,0.23413]
[1744494280411,0.011705,85427.0,85422.0,0.23413]
[1744494280616,0.011706,85425.0,85422.0,0.23413]
[1744494280840,0.011706,85426.0,85422.0,0.23413]
[1744494281040,0.011706,85426.0,85417.0,0.245851]
[1744494281041,0.245766,85448.0,85435.0,0.234096]
[1744494281241,0.245766,85448.0,85428.0,0.234112]
[1744494281242,0.0493,85457.0,85443.0,0.011703]
[1744494281580,0.0493,85457.0,85426.0,0.23412]
[1744494281581,0.011703,85443.0,85426.0,0.23412]
[1744494281775,0.011706,85424.0,85417.0,0.234143]
[1744494281932,0.011706,85422.0,85417.0,0.12084154]
[1744494282154,0.011706,85425.0,85417.0,0.12084154]
[1744494282501,0.234142,85418.0,85417.0,0.0001203]
[1744494282836,0.234142,85418.0,85417.0,0.0011203]
[1744494283042,0.234142,85418.0,85417.0,0.0031203]
[1744494283883,0.1368,85428.0,85422.0,0.011706]
[1744494284039,0.011704,85435.0,85426.0,0.011706]
[1744494284237,0.245791,85438.0,85425.0,0.234122]
[1744494284238,0.011705,85429.0,85425.0,0.234122]
[1744494284508,0.011704,85435.0,85431.0,0.011705]
[1744494284686,0.011704,85434.0,85429.0,0.234112]
[1744494284861,0.23412,85426.0,85425.0,0.12084154]
[1744494285450,0.23412,85426.0,85417.0,0.0001203]
[1744494285451,0.234142,85418.0,85417.0,0.0001203]
[1744494286207,0.011706,85423.0,85417.0,0.0001203]
[1744494286350,0.004,85426.0,85424.0,0.234125]
[1744494287108,0.004,85426.0,85425.0,0.12084154]
[1744494287336,0.002,85426.0,85425.0,0.12084154]
[1744494288214,0.011704,85435.0,85431.0,0.245811]
[1744494288711,0.245794,85437.0,85420.0,0.234136]
[1744494288712,0.011705,85428.0,85420.0,0.234136]
[1744494288915,0.011706,85424.0,85421.0,0.12084154]
[1744494289061,0.011705,85432.0,85427.0,0.011705]
[1744494289264,0.011704,85438.0,85430.0,0.234109]
[1744494289633,0.34,85457.0,85422.0,0.011706]
[1744494289634,0.011705,85433.0,85422.0,0.011706]
[1744494289835,0.001,85426.0,85424.0,0.234123]
[1744494290024,0.001,85424.0,85423.0,0.245834]
[1744494290455,0.001,85424.0,85423.0,0.40179253]
[1744494290634,0.001,85424.0,85423.0,0.39945133]
[1744494290873,0.001,85424.0,85423.0,0.15361733]
[1744494291264,0.011706,85426.0,85423.0,0.15361733]
[1744494291466,0.011706,85426.0,85418.0,0.34]
[1744494291467,0.011706,85421.0,85418.0,0.34]
[1744494291699,0.011705,85431.0,85426.0,0.234118]
[1744494291872,0.011704,85434.0,85429.0,0.011705]
[1744494292013,0.011705,85433.0,85429.0,0.011705]
[1744494292213,0.234092,85437.0,85432.0,0.245809]
[1744494292214,0.245794,85437.0,85432.0,0.245809]
[1744494292418,0.245794,85437.0,85431.0,0.011705]
[1744494292419,0.011704,85435.0,85431.0,0.011705]
[1744494292636,0.011706,85421.0,85418.0,0.001]
[1744494292837,0.011705,85430.0,85424.0,0.011706]
[1744494293337,0.234137,85420.0,85418.0,0.12184154]
[1744494293535,0.234137,85420.0,85418.0,0.001]
[1744494293758,0.12084154,85419.0,85418.0,0.001]
[1744494293960,0.12084154,85419.0,85401.0,0.002]
[1744494293961,0.234178,85405.0,85401.0,0.002]
[1744494294120,0.234178,85405.0,85404.0,0.00098576]
[1744494294766,0.35501954,85405.0,85404.0,0.00098576]
[1744494295292,0.35701954,85405.0,85404.0,0.00098576]
[1744494295508,0.011708,85409.0,85404.0,0.00098576]
[1744494295647,0.004,85405.0,85404.0,0.00098576]
[1744494296071,0.007,85405.0,85404.0,0.00098576]
[1744494296469,0.007,85405.0,85404.0,0.23516676]
[1744494297091,0.007,85405.0,85404.0,0.3560083]
[1744494297445,0.0457,85440.0,85404.0,0.3560083]
[1744494297446,0.011704,85440.0,85432.0,0.011705]
[1744494297618,0.011702,85453.0,85445.0,0.011703]
[1744494297810,0.23405,85452.0,85446.0,0.245768]
[1744494298407,0.011703,85444.0,85438.0,0.24579]
[1744494298585,0.011703,85444.0,85440.0,0.011704]
[1744494298785,0.011703,85443.0,85440.0,0.011704]
[1744494298992,0.245777,85443.0,85438.0,0.24579]
[1744494299242,0.011703,85443.0,85438.0,0.24579]
[1744494299387,0.011703,85442.0,85438.0,0.24579]
[1744494300142,0.003,85444.0,85441.0,0.011703]
[1744494300538,0.014703,85444.0,85441.0,0.011703]
[1744494300681,0.014703,85444.0,85440.0,0.245784]
[1744494300910,0.002,85443.0,85440.0,0.245784]
[1744494301116,0.014703,85444.0,85440.0,0.245784]
[1744494301338,0.002,85444.0,85428.0,0.34]
[1744494301575,0.011704,85435.0,85431.0,0.011705]
[1744494301923,0.011704,85438.0,85432.0,0.011705]
[1744494302157,0.011705,85433.0,85428.0,0.34]
[1744494302368,0.011705,85430.0,85426.0,0.351706]
[1744494302612,0.011705,85430.0,85401.0,0.002]
[1744494302613,0.234112,85429.0,85428.0,0.004]
[1744494303036,0.234112,85429.0,85405.0,0.23431716]
[1744494303037,0.234175,85406.0,85405.0,0.00014016]
[1744494304051,0.234164,85410.0,85405.0,0.00014016]
[1744494304269,0.234175,85406.0,85405.0,0.00014016]
[1744494305077,0.234175,85406.0,85404.0,7.6e-07]
[1744494305078,0.35501654,85406.0,85404.0,7.6e-07]
[1744494305205,0.46084154,85405.0,85404.0,0.00014097]
[1744494305548,0.574186,85402.0,85401.0,0.002]
[1744494305769,0.585898,85401.0,85390.0,0.0008462]
[1744494305983,0.011709,85399.0,85390.0,0.0008462]
[1744494306152,0.245913,85396.0,85390.0,0.0008462]
[1744494306332,0.245913,85396.0,85390.0,0.2467752]
[1744494306534,0.01171,85397.0,85393.0,0.2350568]
[1744494306759,0.01171,85396.0,85393.0,0.0008458]
[1744494307338,0.011709,85398.0,85393.0,0.0008458]
[1744494307535,0.234205,85395.0,85393.0,0.0008458]
[1744494307959,0.12084154,85394.0,85393.0,0.0008458]
[1744494309125,0.234205,85395.0,85393.0,0.0008458]
[1744494309334,0.002,85394.0,85393.0,0.0008458]
[1744494310094,0.12284154,85394.0,85393.0,0.0008458]
[1744494310514,0.18318239,85394.0,85393.0,0.0008458]
[1744494310797,0.18318239,85394.0,85385.0,0.0008458]
[1744494310798,0.58877085,85386.0,85385.0,6e-07]
[1744494310968,0.84805239,85386.0,85385.0,6e-07]
[1744494311916,1.02382728,85386.0,85385.0,6e-07]
[1744494312112,1.03682728,85386.0,85385.0,0.0020006]
[1744494312359,1.03682728,85386.0,85385.0,0.0010006]
[1744494312535,1.03082728,85386.0,85385.0,6e-07]
[1744494312935,0.93082728,85386.0,85385.0,6e-07]
[1744494313143,0.85505239,85386.0,85385.0,6e-07]
[1744494313857,0.86705239,85386.0,85385.0,0.0010006]
[1744494314186,0.86705239,85386.0,85385.0,0.0020006]
[1744494314187,0.71907154,85386.0,85385.0,0.0020006]
[1744494314380,0.85755154,85386.0,85385.0,0.0020006]
[1744494314781,0.59823,85386.0,85385.0,0.0020006]
[1744494315677,0.25323,85386.0,85385.0,0.0010006]
[1744494315886,0.019,85386.0,85385.0,0.0010006]
[1744494316629,0.234228,85387.0,85385.0,6e-07]
[1744494316772,0.01,85386.0,85385.0,0.0010006]
[1744494317124,0.015,85386.0,85385.0,0.0020006]
[1744494317626,0.01,85386.0,85385.0,0.0010006]
[1744494317832,0.01,85386.0,85385.0,0.0020006]
[1744494318178,0.01,85386.0,85385.0,0.0010006]
[1744494318392,0.01,85386.0,85385.0,0.2362336]
[1744494318593,0.24923,85386.0,85385.0,0.0020006]
[1744494318985,0.015,85386.0,85385.0,0.2362336]
[1744494319741,0.015,85386.0,85385.0,0.0020006]
[1744494319942,0.01,85386.0,85385.0,0.0010006]
[1744494320118,0.245936,85388.0,85385.0,6e-07]
[1744494320301,0.234227,85387.0,85385.0,6e-07]
[1744494320489,0.005,85386.0,85385.0,6e-07]
[1744494321015,0.008,85386.0,85385.0,6e-07]
[1744494321381,0.005,85386.0,85385.0,6e-07]
[1744494321824,0.001,85386.0,85385.0,6e-07]
[1744494322990,0.01171,85397.0,85393.0,0.01171]
[1744494323396,0.01171,85397.0,85393.0,0.245921]
[1744494324140,0.06,85395.0,85393.0,0.245921]
[1744494324541,0.06,85395.0,85391.0,0.01171]
[1744494324835,0.06,85395.0,85391.0,0.245924]
[1744494325217,0.06,85395.0,85392.0,0.01171]
[1744494326114,0.06,85395.0,85392.0,0.245921]
[1744494326321,0.063,85395.0,85392.0,0.245921]
[1744494326723,0.06,85395.0,85392.0,0.245921]
[1744494326917,0.066,85395.0,85392.0,0.245921]
[1744494327302,0.07471,85395.0,85391.0,0.245924]
[1744494327742,0.07771,85395.0,85391.0,0.245924]
[1744494328337,0.07471,85395.0,85391.0,0.245924]
[1744494329280,0.07171,85395.0,85391.0,0.245924]
[1744494329408,0.07471,85395.0,85392.0,0.01171]
[1744494329604,0.07771,85395.0,85392.0,0.01171]
[1744494330133,0.07471,85395.0,85392.0,0.01171]
[1744494330339,0.01171,85394.0,85391.0,0.01171]
[1744494330948,0.01171,85392.0,85389.0,0.011711]
[1744494331365,0.01171,85394.0,85390.0,0.01171]
[1744494331566,0.248918,85394.0,85390.0,0.01171]
[1744494332721,0.245918,85394.0,85390.0,0.01171]
[1744494333068,0.002,85392.0,85390.0,0.01171]
[1744494333631,0.250918,85394.0,85390.0,0.01171]
[1744494334053,0.01171,85392.0,85389.0,0.24593]
[1744494334572,0.01371,85392.0,85389.0,0.24593]
[1744494334776,0.01671,85392.0,85389.0,0.24593]
[1744494335541,0.01471,85392.0,85389.0,0.24593]
[1744494335756,0.01471,85392.0,85387.0,0.011711]
[1744494335954,0.01171,85391.0,85387.0,0.011711]
[1744494336350,0.01171,85391.0,85388.0,0.011711]
[1744494337136,0.01171,85391.0,85381.0,0.011712]
[1744494337137,0.01171,85390.0,85381.0,0.011712]
[1744494337687,0.01171,85390.0,85379.0,0.0053001]
[1744494337688,0.23423,85386.0,85379.0,0.0053001]
[1744494338456,0.35507154,85386.0,85379.0,0.0053001]
[1744494338836,0.37688132,85386.0,85379.0,0.0053001]
[1744494339178,0.37688132,85386.0,85353.0,0.0008456]
[1744494339179,0.24878685,85380.0,85353.0,0.0008456]
[1744494339383,0.234263,85374.0,85373.0,9e-07]
[1744494339677,0.35510454,85374.0,85373.0,9e-07]
[1744494340253,0.234263,85374.0,85373.0,9e-07]
[1744494340814,0.239263,85374.0,85373.0,9e-07]
[1744494341121,0.009,85374.0,85373.0,9e-07]
[1744494341313,0.243263,85374.0,85373.0,9e-07]
[1744494341883,0.238263,85374.0,85373.0,9e-07]
[1744494342081,0.246263,85374.0,85373.0,0.0010009]
[1744494342294,0.242263,85374.0,85373.0,0.0010009]
[1744494342503,0.008,85374.0,85373.0,0.0010009]
[1744494342661,0.018,85374.0,85373.0,0.0010009]
[1744494342867,0.018,85374.0,85373.0,0.35610844]
[1744494343104,0.013,85374.0,85373.0,0.35610844]
[1744494343513,0.017,85374.0,85373.0,0.35610844]
[1744494343766,0.017,85374.0,85373.0,0.12184244]
[1744494343933,0.013,85374.0,85373.0,0.12184244]
[1744494344338,0.251263,85374.0,85373.0,0.12184244]
[1744494344581,0.017,85374.0,85373.0,0.12184244]
[1744494345053,0.004,85374.0,85373.0,0.12084244]
[1744494345401,0.008,85374.0,85373.0,0.12084244]
[1744494346193,0.008,85374.0,85373.0,9e-07]
[1744494346194,0.238263,85374.0,85373.0,9e-07]
[1744494346350,0.234263,85374.0,85373.0,9e-07]
[1744494346550,0.237263,85374.0,85373.0,9e-07]
[1744494346750,0.239263,85374.0,85373.0,9e-07]
[1744494346976,0.236263,85374.0,85373.0,9e-07]
[1744494347351,0.238263,85374.0,85373.0,9e-07]
[1744494347941,0.236263,85374.0,85373.0,9e-07]
[1744494348206,0.240263,85374.0,85373.0,9e-07]
[1744494348408,0.238263,85374.0,85373.0,9e-07]
[1744494348787,0.241263,85374.0,85373.0,9e-07]
[1744494369803,0.43542414,85374.0,85373.0,9e-07]
[1744494370000,0.36210454,85374.0,85373.0,9e-07]
[1744494371269,0.35910454,85374.0,85373.0,9e-07]
[1744494371485,0.35510454,85374.0,85373.0,9e-07]
[1744494371988,0.36910454,85374.0,85373.0,0.0010009]
[1744494372394,0.36310454,85374.0,85373.0,0.0010009]
[1744494372628,0.36910454,85374.0,85373.0,0.0010009]
[1744494373608,0.248263,85374.0,85373.0,0.0010009]
[1744494374646,0.001,85365.0,85364.0,1e-07]
[1744494374847,0.001,85365.0,85358.0,5e-07]
[1744494374848,0.58884485,85359.0,85358.0,5e-07]
[1744494375047,0.70968639,85359.0,85358.0,5e-07]
[1744494375253,0.70968639,85359.0,85358.0,0.00014064]
[1744494376182,0.69914554,85359.0,85358.0,0.00014064]
[1744494376386,0.578304,85359.0,85358.0,0.00014064]
[1744494376624,0.011,85359.0,85358.0,0.00114064]
[1744494376760,0.011,85359.0,85358.0,0.23544764]
[1744494377184,0.011,85359.0,85358.0,0.35628918]
[1744494377382,0.011,85359.0,85358.0,0.44848918]
[1744494377583,0.011,85359.0,85358.0,1.25694625]
[1744494377821,0.011711,85387.0,85383.0,0.011711]
[1744494378023,0.011711,85387.0,85382.0,0.011712]
[1744494378024,0.245942,85386.0,85382.0,0.011712]
[1744494378224,0.011711,85385.0,85380.0,0.011712]
[1744494378423,0.011711,85385.0,85381.0,0.12084154]
[1744494378632,0.011712,85382.0,85380.0,0.12084154]
[1744494379422,0.234271,85371.0,85364.0,0.011714]
[1744494379765,0.234271,85371.0,85370.0,0.12084154]
[1744494379903,0.011714,85364.0,85359.0,0.246019]
[1744494380105,0.011714,85361.0,85358.0,0.34214064]
[1744494380529,0.234304,85359.0,85358.0,0.34014064]
[1744494381006,0.245988,85370.0,85365.0,0.234285]
[1744494381166,0.011713,85368.0,85364.0,0.011714]
[1744494381784,0.011713,85368.0,85364.0,0.246004]
[1744494381983,0.011713,85368.0,85364.0,0.011714]
[1744494382417,0.234265,85374.0,85367.0,0.234282]
[1744494382618,0.001,85368.0,85367.0,0.245996]
[1744494383893,0.001,85368.0,85367.0,0.011714]
[1744494384310,0.245987,85370.0,85367.0,0.011714]
[1744494384512,0.011713,85369.0,85366.0,0.011714]
[1744494384687,0.001,85368.0,85366.0,0.011714]
[1744494385049,0.011713,85369.0,85367.0,0.002]
[1744494385250,0.011713,85369.0,85366.0,0.011714]
[1744494385449,0.011713,85369.0,85367.0,0.002]
[1744494385660,0.011713,85369.0,85366.0,0.011714]
[1744494386170,0.011713,85369.0,85366.0,0.013714]
[1744494386747,0.011713,85369.0,85367.0,0.002]
[1744494386958,0.012713,85369.0,85367.0,0.002]
[1744494387648,0.011713,85369.0,85367.0,0.002]
[1744494388219,0.234279,85368.0,85367.0,0.002]
[1744494388422,0.011714,85367.0,85363.0,0.011714]
[1744494388620,0.246002,85365.0,85360.0,0.011715]
[1744494388858,0.246002,85365.0,85361.0,0.35513954]
[1744494389576,0.246002,85365.0,85361.0,0.36685354]
[1744494389760,0.247002,85365.0,85361.0,0.37185354]
[1744494389965,0.011714,85364.0,85361.0,0.37185354]
[1744494390852,0.011714,85364.0,85361.0,0.37285354]
[1744494391276,0.011714,85364.0,85361.0,0.37185354]
[1744494391513,0.011714,85364.0,85361.0,0.36685354]
[1744494391715,0.012714,85364.0,85361.0,0.37285354]
[1744494392320,0.234293,85363.0,85361.0,0.12684154]
[1744494392915,0.001,85364.0,85362.0,0.234294]
[1744494393232,0.012714,85364.0,85361.0,0.13755554]
[1744494393472,0.234293,85363.0,85361.0,0.005]
[1744494393842,0.234293,85363.0,85361.0,0.006]
[1744494394353,0.234293,85363.0,85361.0,0.005]
[1744494394500,0.234293,85363.0,85361.0,0.006]
[1744494394713,0.0452,85362.0,85361.0,0.006]
[1744494394971,0.31858239,85362.0,85361.0,0.006]
[1744494395309,0.31858239,85362.0,85350.0,6.4e-07]
[1744494395310,0.24886685,85351.0,85350.0,6.4e-07]
[1744494395482,0.70970839,85351.0,85350.0,0.0004683]
[1744494396541,0.71370839,85351.0,85350.0,0.0014683]
[1744494396751,0.83443687,85351.0,85350.0,0.0014683]
[1744494397022,0.72664194,85351.0,85350.0,0.0014683]
[1744494401895,0.582326,85351.0,85350.0,0.0014683]
[1744494402311,0.008,85351.0,85350.0,0.2357973]
[1744494402719,0.008,85351.0,85350.0,0.0014683]
[1744494403129,0.242326,85351.0,85350.0,0.0014683]
[1744494403696,0.36316754,85351.0,85350.0,0.0014683]
[1744494404098,0.75066754,85351.0,85350.0,0.0014683]
[1744494421988,0.24888885,85343.0,85341.0,5e-07]
[1744494422222,0.67114154,85342.0,85341.0,5e-07]
[1744494422467,0.24888885,85343.0,85341.0,5e-07]
[1744494422468,0.234348,85343.0,85341.0,5e-07]
[1744494422712,0.246062,85344.0,85341.0,5e-07]
[1744494422964,0.009,85351.0,85348.0,0.011716]
[1744494423229,0.009,85351.0,85342.0,0.35518954]
[1744494423393,0.011714,85361.0,85355.0,0.011715]
[1744494423622,0.011715,85356.0,85351.0,0.011716]
[1744494423866,0.011716,85348.0,85343.0,0.011717]
[1744494424072,0.011716,85352.0,85348.0,0.011716]
[1744494424282,0.011716,85348.0,85343.0,0.12084154]
[1744494424641,0.234342,85345.0,85343.0,0.12084154]
[1744494425024,0.011716,85351.0,85346.0,0.011717]
[1744494425183,0.246032,85355.0,85350.0,0.011716]
[1744494425381,0.001,85351.0,85350.0,0.011716]
[1744494425578,0.246023,85358.0,85350.0,0.011716]
[1744494425579,0.011714,85363.0,85359.0,0.234303]
[1744494425829,0.00046679,85368.0,85364.0,0.011714]
[1744494426001,0.00046679,85368.0,85366.0,0.234285]
[1744494426209,0.00046679,85368.0,85367.0,0.234282]
[1744494426387,0.00046679,85368.0,85367.0,0.40446624]
[1744494426606,0.00046679,85368.0,85367.0,0.40212354]
[1744494426783,0.0118411,85387.0,85371.0,0.011713]
[1744494426988,0.0118411,85387.0,85372.0,0.12084154]
[1744494426989,0.011712,85377.0,85372.0,0.12084154]
[1744494427210,0.245977,85374.0,85372.0,0.34]
[1744494427368,0.011713,85373.0,85368.0,0.234279]
[1744494427566,0.234271,85371.0,85366.0,0.0469]
[1744494427770,0.234281,85368.0,85366.0,0.0469]
[1744494428032,0.011714,85363.0,85360.0,0.34]
[1744494428307,0.011714,85363.0,85342.0,0.23435]
[1744494428308,0.011717,85345.0,85341.0,0.05765744]
[1744494428516,0.011717,85344.0,85342.0,0.12084154]
[1744494428852,0.246062,85344.0,85342.0,0.12084154]
[1744494429347,0.011717,85344.0,85342.0,0.12084154]
[1744494429543,0.011717,85344.0,85342.0,0.12130833]
[1744494429752,0.011717,85344.0,85342.0,0.00046679]
[1744494429753,0.235345,85344.0,85342.0,0.00046679]
[1744494430434,0.235345,85344.0,85342.0,0.00346679]
[1744494431560,0.234345,85344.0,85342.0,0.00346679]
[1744494431691,0.12084154,85343.0,85342.0,0.00046679]
[1744494431895,0.234345,85344.0,85342.0,0.00046679]
[1744494432231,0.235345,85344.0,85342.0,0.00246679]
[1744494432450,0.235345,85344.0,85342.0,0.00146679]
[1744494432451,0.234345,85344.0,85342.0,0.00146679]
[1744494432808,0.005,85343.0,85342.0,0.00046679]
[1744494433396,0.005,85343.0,85342.0,0.56115178]
[1744494433618,0.011714,85365.0,85359.0,0.234304]
[1744494433820,0.011714,85367.0,85359.0,0.234304]
[1744494434023,0.011714,85365.0,85361.0,0.011714]
[1744494434236,0.011713,85372.0,85369.0,0.011713]
[1744494434439,0.011713,85372.0,85368.0,0.245992]
[1744494434757,0.011713,85371.0,85368.0,0.011713]
[1744494435155,0.011713,85369.0,85365.0,0.011714]
[1744494435529,0.0118529,85369.0,85365.0,0.011714]
[1744494436100,0.0118529,85369.0,85368.0,0.002]
[1744494436101,0.0001399,85369.0,85368.0,0.002]
[1744494436305,0.0001399,85369.0,85368.0,0.12284154]
[1744494436514,0.0001399,85369.0,85368.0,0.12084154]
[1744494437486,0.0001399,85369.0,85368.0,0.35512054]
[1744494438013,0.0001399,85369.0,85368.0,0.74382054]
[1744494438215,0.0001399,85369.0,85368.0,0.74582054]
[1744494438399,0.0011399,85369.0,85368.0,0.69712054]
[1744494438769,0.0001399,85369.0,85368.0,0.002]
[1744494438939,0.0001399,85369.0,85368.0,0.008]
[1744494438940,0.0011399,85369.0,85368.0,0.008]
[1744494439725,0.0001399,85369.0,85368.0,0.002]
[1744494439934,0.0001399,85369.0,85368.0,0.003]
[1744494440134,0.0001399,85369.0,85368.0,0.001]
[1744494440337,0.13552229,85369.0,85368.0,1e-06]
[1744494441010,0.88902229,85369.0,85368.0,1e-06]
[1744494441213,0.88902229,85369.0,85338.0,0.0008468]
[1744494441214,0.234348,85343.0,85338.0,0.0008468]
[1744494442441,0.234348,85343.0,85341.0,0.00046729]
[1744494442661,0.235348,85343.0,85341.0,0.00646729]
[1744494443018,0.001,85343.0,85341.0,0.00746729]
[1744494443223,0.001,85343.0,85341.0,0.24182029]
[1744494443442,0.001,85343.0,85342.0,0.5561851]
[1744494443698,0.001,85343.0,85342.0,0.55384154]
[1744494443848,0.011712,85379.0,85371.0,0.011713]
[1744494444059,0.011712,85379.0,85368.0,0.011713]
[1744494444060,0.011713,85375.0,85372.0,0.12084154]
[1744494444254,0.0008472,85388.0,85383.0,0.011711]
[1744494444656,0.2467872,85386.0,85381.0,0.011712]
[1744494444867,0.0125572,85386.0,85381.0,0.36679654]
[1744494445066,0.00098616,85386.0,85383.0,0.245949]
[1744494445274,0.00098616,85386.0,85385.0,0.234233]
[1744494445473,0.00098616,85386.0,85385.0,0.35507454]
[1744494446500,0.00198616,85386.0,85385.0,0.35507454]
[1744494447007,0.00198616,85386.0,85385.0,0.12084154]
[1744494447162,0.00198616,85386.0,85381.0,0.007]
[1744494447372,0.234241,85382.0,85381.0,0.007]
[1744494447685,0.234263,85374.0,85373.0,0.34]
[1744494447907,0.011716,85353.0,85346.0,0.011717]
[1744494448110,0.24605,85348.0,85337.0,1.2065258]
[1744494448327,0.011717,85344.0,85342.0,0.12084154]
[1744494448562,0.011717,85344.0,85341.0,0.12084204]
[1744494448563,0.234348,85343.0,85341.0,0.12084204]
[1744494448771,0.011717,85344.0,85342.0,0.34]
[1744494448993,0.011716,85349.0,85346.0,0.007]
[1744494449202,0.011716,85349.0,85346.0,0.01]
[1744494449353,0.246049,85349.0,85346.0,0.003]
[1744494449578,0.05862947,85433.0,85346.0,0.003]
[1744494449579,0.011715,85359.0,85355.0,0.011715]
[1744494449779,0.2343,85361.0,85357.0,0.011715]
[1744494450100,0.011712,85376.0,85370.0,0.245985]
[1744494450313,0.0125572,85386.0,85373.0,0.011713]
[1744494450632,0.011711,85385.0,85379.0,0.234249]
[1744494450808,0.011711,85384.0,85381.0,0.011712]
[1744494450963,0.011711,85384.0,85381.0,0.13255354]
[1744494451165,0.234267,85373.0,85366.0,0.011714]
[1744494451365,0.234271,85371.0,85370.0,0.12084154]
[1744494451564,0.011713,85374.0,85370.0,0.12084154]
[1744494451565,0.011713,85374.0,85373.0,0.001]
[1744494451770,0.011713,85374.0,85373.0,0.12184154]
[1744494451985,0.23517758,85386.0,85373.0,0.12184154]
[1744494451986,0.011712,85379.0,85373.0,0.12184154]
[1744494452188,0.011712,85379.0,85371.0,0.011713]
[1744494452189,0.23426,85375.0,85374.0,0.12084154]
[1744494452870,0.23426,85375.0,85370.0,0.002]
[1744494452871,0.234271,85371.0,85370.0,0.002]
[1744494453742,0.234271,85371.0,85341.0,5e-07]
[1744494453743,0.234348,85343.0,85341.0,5e-07]
[1744494455122,0.234348,85343.0,85341.0,0.00146729]
[1744494455503,0.234348,85343.0,85341.0,0.00346729]
[1744494455924,0.234348,85343.0,85341.0,0.00046729]
[1744494456121,0.236348,85343.0,85341.0,0.00046729]
[1744494456556,0.002,85343.0,85342.0,0.35519254]
[1744494456744,0.002,85343.0,85342.0,0.35885304]
[1744494456927,0.004,85343.0,85342.0,0.35885304]
[1744494457328,0.011716,85347.0,85342.0,0.0036605]
[1744494457329,0.24606,85345.0,85342.0,0.0036605]
[1744494457537,0.234348,85343.0,85341.0,0.00046729]
[1744494457733,0.001,85343.0,85341.0,0.00046729]
[1744494457936,0.001,85343.0,85342.0,0.12084154]
[1744494458121,0.001,85343.0,85342.0,0.12284154]
[1744494458327,0.001847,85399.0,85369.0,0.011713]
[1744494458328,0.011712,85376.0,85369.0,0.011713]
[1744494458502,0.234238,85384.0,85343.0,0.34]
[1744494458503,0.02057708,85387.0,85383.0,0.011711]